fUSD/lending_fUSD_20240429
["ID","MTS","AMOUNT","RATE_DAILY","PERIOD"]
[324851337,1714373444258,-500.0,0.00011779,2]
[324851338,1714373444269,-1250.33,0.00011779,2]
[324851339,1714373444278,-649.23046229,0.00011779,2]
[324851340,1714373444288,-583.43764837,0.00011779,2]
[324851341,1714373444298,-500.0,0.00011779,2]
[324851342,1714373444307,-2450.63,0.00011779,2]
[324851343,1714373444317,-500.0,0.00011779,2]
[324851344,1714373444326,-592.72547034,0.00011779,2]
[324851345,1714373444335,-500.0,0.00011779,2]
[324851346,1714373444345,-500.0,0.00011779,2]
[324851347,1714373444355,-3515.26,0.00011779,2]
[324851348,1714373444364,-500.0,0.00011779,2]
[324851349,1714373444374,-522.4901868,0.00011779,2]
[324851350,1714373444383,-500.0,0.00011779,2]
[324851351,1714373444393,-460.99720883,0.00011779,2]
[324851352,1714373444402,-500.0,0.00011779,2]
[324851353,1714373444412,-203.7,0.00011779,2]
[324851354,1714373444421,-1407.13,0.00011779,2]
[324851355,1714373444430,-500.0,0.00011779,2]
[324851356,1714373444440,-500.0,0.00011779,2]
[324851357,1714373444449,-500.0,0.00011779,2]
[324851358,1714373444460,-500.0,0.00011779,2]
[324851359,1714373444470,-500.0,0.00011779,2]
[324851360,1714373444480,-500.0,0.00011779,2]
[324851361,1714373444489,-500.0,0.00011779,2]
[324851362,1714373444499,-500.0,0.00011779,2]
[324851363,1714373444508,-500.0,0.00011779,2]
[324851364,1714373444518,-500.0,0.00011779,2]
[324851365,1714373444527,-589.79,0.00011779,2]
[324851366,1714373444537,-500.0,0.00011779,2]
[324851367,1714373444547,-500.0,0.00011779,2]
[324851368,1714373444556,-500.0,0.00011779,2]
[324851369,1714373444565,-500.0,0.00011779,2]
[324851370,1714373444575,-500.0,0.00011779,2]
[324851371,1714373444584,-500.0,0.00011779,2]
[324851372,1714373444595,-559.5,0.00011779,2]
[324851373,1714373444604,-500.0,0.00011779,2]
[324851374,1714373444613,-500.0,0.00011779,2]
[324851375,1714373444623,-630.11,0.00011779,2]
[324851376,1714373444632,-500.0,0.00011779,2]
[324851377,1714373444641,-604.54,0.00011779,2]
[324851378,1714373444651,-159.5463449,0.00011779,2]
[324851379,1714373444659,-500.0,0.00011779,2]
[324851380,1714373444668,-439.39893962,0.00011779,2]
[324851381,1714373444678,-500.0,0.00011779,2]
[324851382,1714373444687,-500.0,0.00011779,2]
[324851383,1714373444697,-500.0,0.00011779,2]
[324851384,1714373444708,-500.0,0.00011779,2]
[324851385,1714373444717,-500.0,0.00011779,2]
[324851386,1714373444727,-274.93,0.00011779,2]
[324851387,1714373444736,-500.0,0.00011779,2]
[324851388,1714373444746,-500.0,0.0001178,2]
[324851389,1714373444755,-394.11,0.0001178,2]
[324851390,1714373444764,-616.79,0.0001178,2]
[324851391,1714373444773,-538.77,0.0001178,2]
[324851392,1714373444783,-1381.35,0.0001178,2]
[324851393,1714373444792,-621.76,0.0001178,2]
[324851394,1714373444802,-163.51436522,0.00011954,2]
[324851395,1714373444811,-15005.49836602,0.00012,2]
[324851396,1714373444820,-409.29540933,0.00012,2]
[324851397,1714373444830,-166.88,0.00012037,2]
[324851398,1714373444839,-526.87390173,0.0001205,2]
[324851399,1714373444848,-206.88313584,0.0001205,2]
[324851400,1714373444858,-178.68529601,0.0001205,2]
[324851401,1714373444867,-3805.47993517,0.0001205,2]
[324851402,1714373444876,-251.06996746,0.00012051,2]
[324851403,1714373444886,-565.6843659,0.00012051,2]
[324851404,1714373444895,-5653.37842289,0.00012051,2]
[324851405,1714373444905,-322.05370386,0.00012051,2]
[324851406,1714373444914,-500.0,0.00012051,2]
[324851407,1714373444924,-407.19761892,0.00012051,2]
[324851408,1714373444933,-500.0,0.00012051,2]
[324851409,1714373444943,-500.0,0.00012051,2]
[324851410,1714373444952,-606.2,0.00012051,2]
[324851411,1714373444963,-154.25,0.00012052,2]
[324851412,1714373444972,-1595.25,0.00012052,2]
[324851413,1714373444982,-500.0,0.00012052,2]
[324851414,1714373444991,-500.0,0.00012052,2]
[324851415,1714373445001,-500.0,0.00012052,2]
[324851416,1714373445010,-500.0,0.00012052,2]
[324851417,1714373445019,-631.26,0.00012052,2]
[324851418,1714373445027,-721.4,0.00012052,2]
[324851419,1714373445036,-500.0,0.00012052,2]
[324851420,1714373445046,-280.87009401,0.00012052,2]
[324851421,1714373445056,-448.43060483,0.00012052,2]
[324851422,1714373445066,-177.88,0.00012052,2]
[324851423,1714373445075,-500.0,0.00012052,2]
[324851424,1714373445084,-500.0,0.00012052,2]
[324851425,1714373445094,-500.0,0.00012052,2]
[324851426,1714373445104,-529.88352472,0.00012052,2]
[324851427,1714373445113,-500.0,0.00012052,2]
[324851428,1714373445122,-500.0,0.00012052,2]
[324851429,1714373445131,-500.0,0.00012052,2]
[324851430,1714373445141,-500.0,0.00012052,2]
[324851431,1714373445150,-500.0,0.00012052,2]
[324851432,1714373445160,-500.0,0.00012052,2]
[324851433,1714373445170,-500.0,0.00012052,2]
[324851434,1714373445179,-500.0,0.00012052,2]
[324851435,1714373445192,-500.0,0.00012052,2]
[324851436,1714373445202,-500.0,0.00012052,2]
[324851437,1714373445213,-200.29,0.00012052,2]
[324851438,1714373445222,-500.0,0.00012052,2]
[324851439,1714373445232,-523.90908588,0.00012052,2]
[324851440,1714373445242,-500.0,0.00012052,2]
[324851441,1714373445251,-3272.09,0.00012052,2]
[324851442,1714373445260,-748.81,0.00012052,2]
[324851443,1714373445270,-500.0,0.00012052,2]
[324851444,1714373445280,-511.46,0.00012052,2]
[324851445,1714373445289,-500.0,0.00012052,2]
[324851446,1714373445298,-637.55,0.00012052,2]
[324851447,1714373445308,-500.0,0.00012052,2]
[324851448,1714373445317,-500.0,0.00012052,2]
[324851449,1714373445327,-500.0,0.00012052,2]
[324851450,1714373445336,-500.0,0.00012052,2]
[324851451,1714373445346,-517.13,0.00012052,2]
[324851452,1714373445357,-500.0,0.00012052,2]
[324851453,1714373445367,-500.0,0.00012052,2]
[324851454,1714373445376,-500.0,0.00012052,2]
[324851455,1714373445386,-500.0,0.00012052,2]
[324851456,1714373445395,-500.0,0.00012052,2]
[324851457,1714373445405,-500.0,0.00012052,2]
[324851458,1714373445414,-500.0,0.00012052,2]
[324851459,1714373445423,-500.0,0.00012052,2]
[324851460,1714373445433,-500.0,0.00012052,2]
[324851461,1714373445442,-1077.3,0.00012052,2]
[324851462,1714373445451,-500.0,0.00012052,2]
[324851463,1714373445462,-585.93,0.00012052,2]
[324851464,1714373445472,-1076.34,0.00012052,2]
[324851465,1714373445480,-500.0,0.00012052,2]
[324851466,1714373445490,-1043.7,0.00012052,2]
[324851467,1714373445499,-500.0,0.00012052,2]
[324851468,1714373445508,-500.0,0.00012052,2]
[324851469,1714373445518,-500.0,0.00012052,2]
[324851470,1714373445527,-500.0,0.00012052,2]
[324851471,1714373445537,-1805.24,0.00012052,2]
[324851472,1714373445546,-960.33,0.00012052,2]
[324851473,1714373445556,-500.0,0.00012052,2]
[324851474,1714373445565,-500.0,0.00012052,2]
[324851475,1714373445574,-1112.28,0.00012052,2]
[324851476,1714373445583,-500.0,0.00012052,2]
[324851477,1714373445593,-500.0,0.00012052,2]
[324851478,1714373445602,-500.0,0.00012052,2]
[324851479,1714373445612,-675.28,0.00012052,2]
[324851480,1714373445620,-937.88,0.00012052,2]
[324851481,1714373445630,-535.65445673,0.00012052,2]
[324851482,1714373445639,-984.45,0.00012052,2]
[324851483,1714373445648,-558.97,0.00012052,2]
[324851484,1714373445658,-500.0,0.00012052,2]
[324851485,1714373445667,-634.66,0.00012052,2]
[324851486,1714373445676,-760.64,0.00012052,2]
[324851487,1714373445686,-638.93,0.00012052,2]
[324851488,1714373445695,-500.0,0.00012052,2]
[324851489,1714373445704,-500.0,0.00012052,2]
[324851490,1714373445715,-500.0,0.00012052,2]
[324851491,1714373445724,-872.3,0.00012052,2]
[324851492,1714373445734,-500.0,0.00012052,2]
[324851493,1714373445743,-500.0,0.00012052,2]
[324851494,1714373445752,-530.32,0.00012052,2]
[324851495,1714373445761,-500.0,0.00012052,2]
[324851496,1714373445771,-727.77,0.00012052,2]
[324851497,1714373445780,-500.0,0.00012052,2]
[324851498,1714373445790,-490.93,0.00012052,2]
[324851499,1714373445799,-662.99,0.00012052,2]
[324851500,1714373445808,-339.45,0.00012052,2]
[324851501,1714373445817,-2116.22,0.00012052,2]
[324851502,1714373445827,-500.0,0.00012052,2]
[324851503,1714373445836,-998.92,0.00012052,2]
[324851504,1714373445845,-500.0,0.00012052,2]
[324851505,1714373445855,-6361.25,0.00012052,2]
[324851506,1714373445864,-443.47,0.00012052,2]
[324851507,1714373445873,-500.0,0.00012052,2]
[324851508,1714373445882,-500.0,0.00012052,2]
[324851509,1714373445892,-556.94,0.00012052,2]
[324851510,1714373445901,-500.0,0.00012052,2]
[324851511,1714373445910,-6248.87,0.00012052,2]
[324851512,1714373445920,-500.0,0.00012052,2]
[324851513,1714373445929,-500.47,0.00012052,2]
[324851514,1714373445939,-500.0,0.00012052,2]
[324851515,1714373445948,-1271.27,0.00012052,2]
[324851516,1714373445958,-500.0,0.00012052,2]
[324851517,1714373445967,-506.72490135,0.00012052,2]
[324851518,1714373445976,-500.0,0.00012052,2]
[324851519,1714373445985,-500.0,0.00012052,2]
[324851520,1714373445995,-550.48,0.00012052,2]
[324851521,1714373446004,-1099.85,0.00012052,2]
[324851522,1714373446013,-500.0,0.00012052,2]
[324851523,1714373446022,-500.0,0.00012052,2]
[324851524,1714373446031,-500.0,0.00012053,2]
[324851525,1714373446041,-487.44270518,0.00012053,2]
[324851526,1714373446050,-500.0,0.00012053,2]
[324851527,1714373446059,-500.0,0.00012053,2]
[324851528,1714373446069,-500.0,0.00012053,2]
[324851529,1714373446078,-500.0,0.00012053,2]
[324851530,1714373446088,-500.0,0.00012053,2]
[324851531,1714373446097,-556.90368875,0.00012053,2]
[324851532,1714373446106,-500.0,0.00012053,2]
[324851533,1714373446116,-500.0,0.00012053,2]
[324851534,1714373446132,-503.84956728,0.00012053,2]
[324851535,1714373446153,-500.0,0.00012053,2]
[324851536,1714373446172,-500.0,0.00012053,2]
[324851537,1714373446191,-500.0,0.00012053,2]
[324851538,1714373446212,-500.0,0.00012053,2]
[324851539,1714373446232,-500.0,0.00012053,2]
[324851540,1714373446253,-601.5,0.00012053,2]
[324851541,1714373446274,-563.86,0.00012053,2]
[324851542,1714373446296,-500.0,0.00012053,2]
[324851543,1714373446317,-500.0,0.00012053,2]
[324851544,1714373446338,-500.0,0.00012053,2]
[324851545,1714373446358,-500.0,0.00012053,2]
[324851546,1714373446370,-500.0,0.00012053,2]
[324851547,1714373446379,-500.0,0.00012053,2]
[324851548,1714373446388,-500.0,0.00012053,2]
[324851549,1714373446398,-500.0,0.00012053,2]
[324851550,1714373446407,-150.0,0.00012053,2]
[324851551,1714373446417,-500.0,0.00012053,2]
[324851552,1714373446426,-500.0,0.00012053,2]
[324851553,1714373446435,-500.0,0.00012053,2]
[324851554,1714373446445,-152.35,0.00012053,2]
[324851555,1714373446454,-500.0,0.00012053,2]
[324851556,1714373446465,-500.0,0.00012053,2]
[324851557,1714373446474,-500.0,0.00012053,2]
[324851558,1714373446484,-549.47,0.00012053,2]
[324851559,1714373446493,-500.0,0.00012053,2]
[324851560,1714373446503,-500.0,0.00012053,2]
[324851561,1714373446513,-500.0,0.00012053,2]
[324851562,1714373446522,-500.0,0.00012053,2]
[324851563,1714373446532,-500.0,0.00012053,2]
[324851564,1714373446541,-500.0,0.00012053,2]
[324851565,1714373446551,-598.88,0.00012053,2]
[324851566,1714373446561,-500.0,0.00012053,2]
[324851567,1714373446571,-290.86,0.00012053,2]
[324851568,1714373446580,-500.0,0.00012053,2]
[324851569,1714373446589,-381.40334801,0.00012053,2]
[324851570,1714373446599,-500.0,0.00012053,2]
[324851571,1714373446608,-500.0,0.00012053,2]
[324851572,1714373446618,-572.62,0.00012053,2]
[324851573,1714373446627,-500.0,0.00012053,2]
[324851574,1714373446636,-839.19,0.00012053,2]
[324851575,1714373446646,-500.0,0.00012053,2]
[324851576,1714373446655,-500.0,0.00012053,2]
[324851577,1714373446664,-242.9,0.00012053,2]
[324851578,1714373446674,-500.0,0.00012053,2]
[324851579,1714373446683,-500.0,0.00012053,2]
[324851580,1714373446693,-500.0,0.00012053,2]
[324851582,1714373446703,-500.0,0.00012053,2]
[324851584,1714373446715,-500.0,0.00012053,2]
[324851585,1714373446725,-500.0,0.00012053,2]
[324851586,1714373446734,-500.0,0.00012053,2]
[324851587,1714373446743,-500.0,0.00012053,2]
[324851588,1714373446791,-500.0,0.00012053,2]
[324851589,1714373446800,-500.0,0.00012053,2]
[324851590,1714373446809,-500.0,0.00012053,2]
[324851591,1714373446818,-500.0,0.00012053,2]
[324851592,1714373446828,-500.0,0.00012053,2]
[324851593,1714373446837,-500.0,0.00012053,2]
[324851594,1714373446846,-500.0,0.00012053,2]
[324851595,1714373446855,-500.0,0.00012053,2]
[324851596,1714373446864,-500.0,0.00012053,2]
[324851597,1714373446873,-500.0,0.00012053,2]
[324851598,1714373446883,-500.0,0.00012053,2]
[324851599,1714373446892,-500.0,0.00012053,2]
[324851600,1714373446902,-1250.33,0.00012053,2]
[324851601,1714373446911,-500.0,0.00012053,2]
[324851602,1714373446920,-2450.63,0.00012053,2]
[324851603,1714373446930,-500.0,0.00012053,2]
[324851604,1714373446939,-500.0,0.00012053,2]
[324851605,1714373446948,-500.0,0.00012053,2]
[324851606,1714373446959,-3515.26,0.00012053,2]
[324851607,1714373446968,-500.0,0.00012053,2]
[324851608,1714373446977,-298.39,0.00012053,2]
[324851609,1714373446986,-500.0,0.00012053,2]
[324851610,1714373446995,-1407.13,0.00012053,2]
[324851611,1714373447004,-500.0,0.00012053,2]
[324851612,1714373447014,-500.0,0.00012053,2]
[324851613,1714373447023,-176.95,0.00012053,2]
[324851614,1714373447032,-500.0,0.00012053,2]
[324851615,1714373447041,-500.0,0.00012053,2]
[324851616,1714373447051,-491.73,0.00012053,2]
[324851617,1714373447060,-500.0,0.00012053,2]
[324851618,1714373447070,-500.0,0.00012053,2]
[324851619,1714373447079,-500.0,0.00012053,2]
[324851620,1714373447088,-589.79,0.00012053,2]
[324851621,1714373447098,-500.0,0.00012053,2]
[324851622,1714373447107,-500.0,0.00012053,2]
[324851623,1714373447116,-500.0,0.00012053,2]
[324851624,1714373447128,-500.0,0.00012053,2]
[324851625,1714373447137,-500.0,0.00012053,2]
[324851626,1714373447146,-500.0,0.00012053,2]
[324851627,1714373447155,-559.5,0.00012053,2]
[324851628,1714373447165,-500.0,0.00012053,2]
[324851629,1714373447174,-500.0,0.00012053,2]
[324851630,1714373447186,-500.0,0.00012053,2]
[324851631,1714373447197,-604.54,0.00012053,2]
[324851632,1714373447206,-500.0,0.00012053,2]
[324851633,1714373447217,-500.0,0.00012053,2]
[324851634,1714373447227,-538.59,0.00012053,2]
[324851635,1714373447236,-500.0,0.00012053,2]
[324851636,1714373447245,-500.0,0.00012053,2]
[324851637,1714373447254,-624.18,0.00012053,2]
[324851638,1714373447263,-500.0,0.00012054,2]
[324851639,1714373447273,-616.79,0.00012054,2]
[324851640,1714373447283,-538.77,0.00012054,2]
[324851641,1714373447292,-1381.35,0.00012054,2]
[324851642,1714373447301,-621.76,0.00012054,2]
[324851643,1714373447310,-1068.02,0.00012055,2]
[324851644,1714373447320,-14935.7,0.00012055,2]
[324851645,1714373447329,-706.44,0.00012062,2]
[324851646,1714373447338,-232.23,0.00012159,2]
[324851647,1714373447347,-163.51436518,0.00012191,2]
[324851648,1714373447356,-300.0,0.00012192,2]
[324851649,1714373447366,-300.0,0.00012192,2]
[324851650,1714373447375,-350.66,0.00012192,2]
[324851651,1714373447384,-528.37,0.00012192,2]
[324851652,1714373447393,-150.0,0.00012192,2]
[324851653,1714373447402,-251.46569504,0.00012317,2]
[324851654,1714373447411,-500.0,0.00012325,2]
[324851655,1714373447421,-500.0,0.00012325,2]
[324851656,1714373447430,-500.0,0.00012325,2]
[324851657,1714373447440,-1595.25,0.00012326,2]
[324851658,1714373447449,-432.21,0.00012326,2]
[324851659,1714373447460,-518.2,0.00012326,2]
[324851660,1714373447469,-500.0,0.00012326,2]
[324851661,1714373447478,-500.0,0.00012326,2]
[324851662,1714373447487,-721.4,0.00012326,2]
[324851663,1714373447496,-500.0,0.00012326,2]
[324851664,1714373447506,-517.58,0.00012326,2]
[324851665,1714373447515,-500.0,0.00012326,2]
[324851666,1714373447524,-341.24,0.00012326,2]
[324851667,1714373447534,-269.29,0.00012326,2]
[324851668,1714373447543,-500.0,0.00012326,2]
[324851669,1714373447553,-500.0,0.00012326,2]
[324851670,1714373447562,-500.0,0.00012326,2]
[324851671,1714373447572,-500.0,0.00012326,2]
[324851672,1714373447582,-500.0,0.00012326,2]
[324851673,1714373447591,-500.0,0.00012326,2]
[324851674,1714373447600,-503.14474572,0.00012326,2]
[324851675,1714373447609,-3272.09,0.00012326,2]
[324851676,1714373447619,-748.81,0.00012326,2]
[324851677,1714373447628,-500.0,0.00012326,2]
[324851678,1714373447637,-511.46,0.00012326,2]
[324851679,1714373447646,-502.9,0.00012326,2]
[324851680,1714373447655,-500.0,0.00012326,2]
[324851681,1714373447665,-500.0,0.00012326,2]
[324851682,1714373447674,-517.13,0.00012326,2]
[324851683,1714373447684,-500.0,0.00012326,2]
[324851684,1714373447693,-500.0,0.00012326,2]
[324851685,1714373447702,-500.0,0.00012326,2]
[324851686,1714373447715,-500.0,0.00012326,2]
[324851687,1714373447724,-500.0,0.00012326,2]
[324851688,1714373447733,-500.0,0.00012326,2]
[324851689,1714373447743,-1077.3,0.00012326,2]
[324851690,1714373447752,-585.93,0.00012326,2]
[324851691,1714373447762,-1076.34,0.00012326,2]
[324851692,1714373447772,-500.0,0.00012326,2]
[324851693,1714373447782,-1043.7,0.00012326,2]
[324851694,1714373447792,-500.0,0.00012326,2]
[324851695,1714373447801,-500.0,0.00012326,2]
[324851696,1714373447811,-500.0,0.00012326,2]
[324851697,1714373447820,-1805.24,0.00012326,2]
[324851698,1714373447830,-960.33,0.00012326,2]
[324851699,1714373447840,-500.0,0.00012326,2]
[324851700,1714373447850,-1112.28,0.00012326,2]
[324851701,1714373447859,-500.0,0.00012326,2]
[324851702,1714373447868,-500.0,0.00012326,2]
[324851703,1714373447878,-480.11923451,0.00012326,2]
[324851704,1714373447888,-675.28,0.00012326,2]
[324851705,1714373447897,-937.88,0.00012326,2]
[324851706,1714373447908,-984.45,0.00012326,2]
[324851707,1714373447918,-558.97,0.00012326,2]
[324851708,1714373447928,-634.66,0.00012326,2]
[324851709,1714373447938,-638.93,0.00012326,2]
[324851710,1714373447947,-760.64,0.00012326,2]
[324851711,1714373447956,-500.0,0.00012326,2]
[324851712,1714373447970,-872.3,0.00012326,2]
[324851713,1714373447979,-378.24,0.00012326,2]
[324851714,1714373447988,-530.32,0.00012326,2]
[324851715,1714373447998,-727.77,0.00012326,2]
[324851716,1714373448007,-500.0,0.00012326,2]
[324851717,1714373448016,-662.99,0.00012326,2]
[324851718,1714373448026,-998.92,0.00012326,2]
[324851719,1714373448035,-2116.22,0.00012326,2]
[324851720,1714373448045,-6361.25,0.00012326,2]
[324851721,1714373448054,-500.0,0.00012326,2]
[324851722,1714373448064,-500.0,0.00012326,2]
[324851723,1714373448074,-6248.87,0.00012326,2]
[324851724,1714373448083,-500.0,0.00012326,2]
[324851725,1714373448092,-500.0,0.00012326,2]
[324851726,1714373448101,-1271.27,0.00012326,2]
[324851727,1714373448111,-500.0,0.00012326,2]
[324851728,1714373448120,-500.0,0.00012326,2]
[324851729,1714373448129,-500.0,0.00012326,2]
[324851730,1714373448138,-550.48,0.00012326,2]
[324851731,1714373448147,-1099.85,0.00012326,2]
[324851732,1714373448155,-500.0,0.00012326,2]
[324851733,1714373448165,-500.0,0.00012327,2]
[324851734,1714373448174,-500.0,0.00012327,2]
[324851735,1714373448184,-500.0,0.00012327,2]
[324851736,1714373448196,-500.0,0.00012327,2]
[324851737,1714373448205,-441.71,0.00012327,2]
[324851738,1714373448218,-500.0,0.00012327,2]
[324851739,1714373448228,-500.0,0.00012327,2]
[324851740,1714373448238,-203.88,0.00012327,2]
[324851741,1714373448247,-545.76626653,0.00012327,2]
[324851742,1714373448257,-500.0,0.00012327,2]
[324851743,1714373448266,-500.0,0.00012327,2]
[324851744,1714373448279,-500.0,0.00012327,2]
[324851745,1714373448288,-500.0,0.00012327,2]
[324851746,1714373448297,-500.0,0.00012327,2]
[324851747,1714373448307,-500.0,0.00012327,2]
[324851748,1714373448316,-150.0,0.00012327,2]
[324851749,1714373448326,-500.0,0.00012327,2]
[324851750,1714373448335,-608.05,0.00012327,2]
[324851751,1714373448344,-500.0,0.00012327,2]
[324851752,1714373448353,-500.0,0.00012327,2]
[324851753,1714373448364,-169.89,0.00012327,2]
[324851754,1714373448374,-500.0,0.00012327,2]
[324851755,1714373448383,-572.62,0.00012327,2]
[324851756,1714373448392,-533.75,0.00012327,2]
[324851757,1714373448402,-839.19,0.00012327,2]
[324851758,1714373448411,-500.0,0.00012327,2]
[324851759,1714373448420,-500.0,0.00012327,2]
[324851760,1714373448430,-500.0,0.00012327,2]
[324851761,1714373448439,-500.0,0.00012327,2]
[324851762,1714373448448,-500.0,0.00012327,2]
[324851763,1714373448457,-579.88,0.00012327,2]
[324851764,1714373448469,-500.0,0.00012327,2]
[324851765,1714373448478,-500.0,0.00012327,2]
[324851766,1714373448487,-500.0,0.00012327,2]
[324851767,1714373448496,-500.0,0.00012327,2]
[324851768,1714373448506,-500.0,0.00012327,2]
[324851769,1714373448515,-500.0,0.00012327,2]
[324851770,1714373448524,-500.0,0.00012327,2]
[324851771,1714373448534,-500.0,0.00012327,2]
[324851772,1714373448543,-500.0,0.00012327,2]
[324851773,1714373448553,-1250.33,0.00012327,2]
[324851774,1714373448561,-2450.63,0.00012327,2]
[324851775,1714373448571,-500.0,0.00012327,2]
[324851776,1714373448580,-3515.26,0.00012327,2]
[324851777,1714373448589,-572.77,0.00012327,2]
[324851778,1714373448598,-1407.13,0.00012327,2]
[324851779,1714373448607,-500.0,0.00012327,2]
[324851780,1714373448616,-335.46,0.00012327,2]
[324851781,1714373448625,-500.0,0.00012327,2]
[324851782,1714373448634,-500.0,0.00012327,2]
[324851783,1714373448643,-589.79,0.00012327,2]
[324851784,1714373448652,-500.0,0.00012327,2]
[324851785,1714373448661,-500.0,0.00012327,2]
[324851786,1714373448670,-226.10748064,0.00012327,2]
[324851787,1714373448679,-500.0,0.00012327,2]
[324851788,1714373448688,-559.5,0.00012327,2]
[324851789,1714373448697,-500.0,0.00012327,2]
[324851790,1714373448706,-604.54,0.00012327,2]
[324851791,1714373448719,-285.3,0.00012327,2]
[324851792,1714373448728,-400.58297498,0.00012327,2]
[324851793,1714373448738,-500.0,0.00012327,2]
[324851794,1714373448747,-500.0,0.00012328,2]
[324851795,1714373448757,-616.79,0.00012328,2]
[324851796,1714373448765,-538.77,0.00012328,2]
[324851797,1714373448775,-1381.35,0.00012328,2]
[324851798,1714373448784,-621.76,0.00012328,2]
[324851799,1714373448793,-525.0,0.00012329,2]
[324851800,1714373448803,-6540.69978067,0.0001233,2]
[324851801,1714373448812,-786.56157711,0.0001233,2]
[324851802,1714373448821,-150.0,0.0001241,3]
[324851803,1714373448830,-163.51436518,0.00012427,2]
[324851804,1714373448839,-832.18,0.00012459,2]
[324851805,1714373448848,-500.0,0.00012599,2]
[324851806,1714373448857,-491.77,0.00012599,2]
[324851807,1714373448866,-166.21191824,0.000126,2]
[324851808,1714373448875,-1595.25,0.000126,2]
[324851809,1714373448884,-500.0,0.000126,2]
[324851810,1714373448893,-500.0,0.000126,2]
[324851811,1714373448902,-721.4,0.000126,2]
[324851812,1714373448911,-500.0,0.000126,2]
[324851813,1714373448921,-495.88993281,0.000126,2]
[324851814,1714373448930,-500.0,0.000126,2]
[324851815,1714373448939,-500.0,0.000126,2]
[324851816,1714373448948,-500.0,0.000126,2]
[324851817,1714373448957,-500.0,0.000126,2]
[324851818,1714373448969,-3272.09,0.000126,2]
[324851819,1714373448979,-748.81,0.000126,2]
[324851820,1714373448988,-500.0,0.000126,2]
[324851821,1714373448997,-511.46,0.000126,2]
[324851822,1714373449006,-500.0,0.000126,2]
[324851823,1714373449015,-500.0,0.000126,2]
[324851824,1714373449024,-517.13,0.000126,2]
[324851825,1714373449034,-500.0,0.000126,2]
[324851826,1714373449043,-500.0,0.000126,2]
[324851827,1714373449052,-500.0,0.000126,2]
[324851828,1714373449062,-500.0,0.000126,2]
[324851829,1714373449071,-500.0,0.000126,2]
[324851830,1714373449080,-500.0,0.000126,2]
[324851831,1714373449089,-1077.3,0.000126,2]
[324851832,1714373449098,-585.93,0.000126,2]
[324851833,1714373449107,-1076.34,0.000126,2]
[324851834,1714373449117,-500.0,0.000126,2]
[324851835,1714373449125,-1043.7,0.000126,2]
[324851836,1714373449135,-500.0,0.000126,2]
[324851837,1714373449144,-500.0,0.000126,2]
[324851838,1714373449153,-500.0,0.000126,2]